Cogmind - Beta 14 @@@ ROGUE MODE // 2024.11.22 @ 22:44:32 Player: CoolCatCid Result: Destroyed by Y-45 Defender with Heavy Assault Rifle Performance ------------- Evolutions (2) 1000 Regions Visited (5) 1000 Robots Destroyed (12) 60 Value Destroyed (385) 385 Prototype IDs (1) 20 Alien Tech Used (0) 0 Bonus (0) 0 TOTAL SCORE: 2465 Bonus ------- None Cogmind --------- Core Integrity 0/550 Matter 235/300 Energy 98/100 System Corruption 0% Temperature Cool (0) Movement Core (50) Location -8/Materials Parts ------- > --- POWER (1) -------- (None) > --- PROPULSION (3) --- (None) > --- UTILITY (4) ------ Terrain Scan Processor > --- WEAPON (3) ------- (None) > --- INVENTORY (5) ---- Ion Engine Ion Engine Visual Processing Unit Weapon Shielding Peak State ------------ > --- POWER ------------ Ion Engine > --- PROPULSION ------- Improved Hover Unit Improved Hover Unit > --- UTILITY ---------- Heat Sink Small Storage Unit Terrain Scan Processor System Shield > --- WEAPON ----------- Heavy Assault Rifle Light Cannon Rocket Launcher > --- INVENTORY -------- Ion Engine Ion Engine Medium Battery Visual Processing Unit Utility Shielding Weapon Shielding Grenade Launcher [Rating: 17] Favorites ----------- Power Ion Engine Engine Ion Engine Propulsion Aluminum Leg Leg Aluminum Leg Hover Unit Improved Hover Unit Utility Small Storage Unit Device ECM Suite Storage Small Storage Unit Processor Terrain Scan Processor Hackware System Shield Protection Propulsion Shielding Weapon Small Laser Energy Gun Small Laser Ballistic Gun Assault Rifle Ballistic Cannon Light Cannon Launcher Grenade Launcher Build | -11 -10 -10 -9 -9 -8 ------- Run | Yrd Mat Min Mat Min Mat Slots Evolved 4 | . . . 2 . 2 Power . | . . . . . . Propulsion 1 | . . . . . 1 Utility 2 | . . . 1 . 1 Weapon 1 | . . . 1 . . Parts Attached 30 | 6 1 . 16 3 4 Power 6 | 1 . . 4 . 1 Engine 6 | 1 . . 4 . 1 Core . | . . . . . . Reactor . | . . . . . . Propulsion 5 | 2 . . 3 . . Treads . | . . . . . . Leg 2 | 2 . . . . . Wheel . | . . . . . . Hover 3 | . . . 3 . . Flight . | . . . . . . Utility 8 | 1 1 . 4 1 1 Device 3 | . 1 . 2 . . Storage 1 | 1 . . . . . Processor 2 | . . . 1 1 . Hackware 1 | . . . . . 1 Protection 1 | . . . 1 . . Artifact . | . . . . . . Weapon 11 | 2 . . 5 2 2 Energy Gun 4 | 1 . . 3 . . Energy Cannon . | . . . . . . Ballistic Gun 3 | 1 . . 1 . 1 Ballistic Cannon 1 | . . . . 1 . Launcher 3 | . . . 1 1 1 Special Weapon . | . . . . . . Impact Weapon . | . . . . . . Slashing Weapon . | . . . . . . Piercing Weapon . | . . . . . . Special Melee Weapon . | . . . . . . Unidentified Prototypes 1 | . . . 1 . . Parts Lost 21 | . . . 10 . 11 Power 2 | . . . 1 . 1 Propulsion 5 | . . . 3 . 2 Utility 6 | . . . 3 . 3 Weapon 8 | . . . 3 . 5 Highest Loss Streak 11 | . . . 5 . 11 To Critical Strikes . | . . . . . . Average Slot Usage (%) 93 | . 96 100 94 97 54 Engine 12 | . 14 14 10 11 4 Leg 21 | . 28 28 18 . . Hover 2 | . . . 2 22 9 Device 10 | . 10 14 11 11 4 Storage 12 | . 14 14 11 11 5 Processor 1 | . . . 1 11 9 Protection 2 | . . . 7 . . Energy Gun 14 | . 14 14 19 . . Ballistic Gun 11 | . 14 14 9 11 5 Launcher 1 | . . . 1 11 4 Peak Build Rating 17 | 6 7 7 12 14 17 Average Rating 8 | 4 6 7 10 12 10 On Entrance 7 | . 6 7 7 10 14 Naked Turns . | . . . . . . Heaviest Build 21 | 13 15 15 19 21 21 Greatest Support 20 | 20 20 20 20 14 14 Greatest Overweight (x) 4 | 3 . . 4 1 2 Average Overweight (x) . | . . . . 1 . Largest Inventory Capacity 8 | 8 8 8 8 8 8 Average Capacity 7 | 7 8 8 8 8 6 Most Carried 8 | 6 8 8 8 7 7 Average Carried 7 | 2 7 8 7 5 5 Final Capacity 8 | 8 8 8 8 8 5 Final Carried 8 | 6 8 8 5 7 4 Class Distribution -------------------- 63% | Mutant 22% | Tank 14% | Gunner Dominant Class ---------------- Mutant | -10/Materials Mutant | -10/Mines Tank | -9/Materials Gunner | -9/Mines Gunner | -8/Materials Resources | -11 -10 -10 -9 -9 -8 ----------- Run | Yrd Mat Min Mat Min Mat Matter Collected 525 | 213 78 . 116 39 79 Remotely . | . . . . . . Salvage Created 437 | . 79 . 358 . . Parts 27 | . 5 . 22 . . Haulers Intercepted . | . . . . . . Recyclers Shooed 1 | . . . 1 . . Parts Field Recycled . | . . . . . . Retrieved Matter . | . . . . . . Parts Self-Destructed . | . . . . . . Prevented . | . . . . . . Kills | -11 -10 -10 -9 -9 -8 ------- Run | Yrd Mat Min Mat Min Mat Combat Hostiles Destroyed 9 | . 2 . 7 . . Guns 7 | . 2 . 5 . . AOE 2 | . . . 2 . . Classes Destroyed 6 | . 1 . 5 . . Worker 1 | . . . 1 . . Recycler 1 | . . . 1 . . Watcher 1 | . . . 1 . . Grunt 5 | . 2 . 3 . . Duelist 1 | . . . 1 . . Sentry 3 | . . . 3 . . Best Kill Streak 3 | . 2 . 3 . . Combat Bots Only 2 | . 2 . 2 . . Max Kills in Single Turn 1 | . 1 . 1 . . Gunslinging . | . . . . . . Exploded 1 | . . . 1 . . Melee . | . . . . . . Uniques/NPCs Destroyed . | . . . . . . Combat | -11 -10 -10 -9 -9 -8 -------- Run | Yrd Mat Min Mat Min Mat Hostile Shots Fired 92 | . 4 . 56 . 32 Missed 24 | . 2 . 16 . 6 Damage Taken 1944 | . 23 . 872 . 1049 Core 691 | . . . 141 . 550 Absorbed by Shields . | . . . . . . Redirected to Shielding 3 | . . . 3 . . Core Remaining (%) 88 | 100 . 100 . 64 . Volleys Fired 46 | . 7 . 27 . 12 Largest 3 | . 2 . 3 . 1 Hottest 116 | . 60 . 116 . 30 Shots Fired 96 | . 14 . 70 . 12 Gun 89 | . 14 . 64 . 11 Cannon . | . . . . . . Launcher 7 | . . . 6 . 1 Special . | . . . . . . Kinetic 35 | . 7 . 17 . 11 Thermal 54 | . 7 . 47 . . Explosive 7 | . . . 6 . 1 Electromagnetic . | . . . . . . Robot Hit Streak 15 | . 6 . 10 . 15 Robot Miss Streak 4 | . 4 . 3 . 1 Penetration Max . | . . . . . . Secondary Targets . | . . . . . . Shots Hit Robots 66 | . 8 . 48 . 10 Core Hits 26 | . 5 . 19 . 2 Critical Kills . | . . . . . . Critical Parts Destroyed . | . . . . . . Critical Strikes . | . . . . . . Melee Attacks . | . . . . . . Impact . | . . . . . . Slashing . | . . . . . . Piercing . | . . . . . . Sneak Attacks . | . . . . . . Combat Hostiles . | . . . . . . Follow-up Attacks . | . . . . . . Damage Inflicted 1079 | . 99 . 836 . 144 Guns 780 | . 99 . 550 . 131 Cannons . | . . . . . . Explosions 299 | . . . 286 . 13 Melee . | . . . . . . Ramming . | . . . . . . Kinetic 354 | . 55 . 168 . 131 Thermal 426 | . 44 . 382 . . Explosive 299 | . . . 286 . 13 Electromagnetic . | . . . . . . Impact . | . . . . . . Slashing . | . . . . . . Piercing . | . . . . . . Highest Corruption 5 | . . . 5 5 . Average Corruption 5 | . . . 5 5 . Corruption Purged . | . . . . . . Corruption Blocked . | . . . . . . Effects 3 | . . . 1 2 . Message Errors 1 | . . . . 1 . Matter Fused 2 | . . . 1 1 . Overload Shots . | . . . . . . Overflow Damage 36 | . . . 36 . . Projectiles . | . . . . . . Explosions 36 | . . . 36 . . Melee . | . . . . . . Knockbacks . | . . . . . . Impact . | . . . . . . Kinetic . | . . . . . . Secondary . | . . . . . . Self-Inflicted Damage 150 | . . . 112 . 38 Shots 4 | . . . 3 . 1 Rammed . | . . . . . . Targets Rammed . | . . . . . . Kicked . | . . . . . . Crushed . | . . . . . . Highest Temperature 324 | . 6 . 324 . . Average Temperature 99 | . 6 . 104 . . Received Heat Transfer 249 | . 12 . 192 . 45 Effects 3 | . . . 3 . . Interference 2 | . . . 2 . . Short Circuit 1 | . . . 1 . . Siege Activations . | . . . . . . Robots Corrupted . | . . . . . . Combat Hostiles . | . . . . . . Parts Fried . | . . . . . . Impact Corruptions . | . . . . . . Robots Melted . | . . . . . . Combat Hostiles . | . . . . . . Parts Melted 2 | . 1 . 1 . . Heat Transferred 996 | . 100 . 896 . . Parts Sabotaged . | . . . . . . Parts Stolen . | . . . . . . Parts Stripped . | . . . . . . Power Chain Reactions . | . . . . . . Alert | -11 -10 -10 -9 -9 -8 ------- Run | Yrd Mat Min Mat Min Mat Peak Influence 188 | . 70 12 188 7 9 Initial 7 | . . 5 4 7 2 Average 40 | . 30 11 72 7 . Maximum Alert Level . | . . . . . . Low Security (%) 100 | 100 100 100 100 100 100 Level 1 . | . . . . . . Level 2 . | . . . . . . Level 3 . | . . . . . . Level 4 . | . . . . . . Level 5 . | . . . . . . High Security . | . . . . . . Max Security . | . . . . . . Squads Dispatched 3 | . 1 . 1 . 1 Investigation 1 | . 1 . . . . Extermination . | . . . . . . Reinforcement 2 | . . . 1 . 1 Assault . | . . . . . . Garrison . | . . . . . . Intercept . | . . . . . . Searches Triggered . | . . . . . . Construction Impeded . | . . . . . . Haulers Reinforced . | . . . . . . Active Scanning Responses . | . . . . . . Cargo Convoy Interrupts . | . . . . . . Stealth | -11 -10 -10 -9 -9 -8 --------- Run | Yrd Mat Min Mat Min Mat Distress Signals 3 | . . . 2 . 1 Communications Jammed . | . . . . . . Distress Signals . | . . . . . . Times Spotted 32 | . 11 . 16 . 5 Peak Tracking Total 4 | . 2 . 4 . 4 Tactical Retreats 1 | . . . 1 . . Traps | -11 -10 -10 -9 -9 -8 ------- Run | Yrd Mat Min Mat Min Mat Traps Triggered 1 | . 1 . . . . Indirectly . | . . . . . . Trap Hack Attempts . | . . . . . . Triggered . | . . . . . . Disarmed . | . . . . . . Reprogrammed . | . . . . . . Reused . | . . . . . . Traps Extracted . | . . . . . . Installed . | . . . . . . Triggered . | . . . . . . Machines | -11 -10 -10 -9 -9 -8 ---------- Run | Yrd Mat Min Mat Min Mat Machines Disabled 1 | . . . 1 . . Max in Single Turn 1 | . . . 1 . . Machines Repaired . | . . . . . . Machines Dismantled . | . . . . . . Machines Sabotaged . | . . . . . . Overloaded Fab Kills . | . . . . . . Hacking | -11 -10 -10 -9 -9 -8 --------- Run | Yrd Mat Min Mat Min Mat Machines Accessed 4 | . 1 1 2 . . Terminals 3 | . 1 1 1 . . Fabricators . | . . . . . . Repair Stations . | . . . . . . Recycling Units . | . . . . . . Scanalyzers 1 | . . . 1 . . Garrison Access . | . . . . . . Total Hacks 7 | . 3 1 3 . . Successful 3 | . . 1 2 . . Failed 4 | . 3 . 1 . . Catastrophic 1 | . 1 . . . . Database Lockouts . | . . . . . . Manual . | . . . . . . Terminals 5 | . 3 1 1 . . Fabricators . | . . . . . . Repair Stations . | . . . . . . Recycling Units . | . . . . . . Scanalyzers 2 | . . . 2 . . Garrison Access . | . . . . . . Terminal Hacks 1 | . . 1 . . . Patrol Status 1 | . . 1 . . . Fabricator Hacks . | . . . . . . Repair Station Hacks . | . . . . . . Recycling Unit Hacks . | . . . . . . Scanalyzer 2 | . . . 2 . . Insert Component 1 | . . . 1 . . Analyze 1 | . . . 1 . . Garrison Access Hacks . | . . . . . . Unauthorized Hacks . | . . . . . . Terminals . | . . . . . . Fabricators . | . . . . . . Repair Stations . | . . . . . . Recycling Units . | . . . . . . Scanalyzers . | . . . . . . Garrison Access . | . . . . . . Data Cores Recovered . | . . . . . . Used . | . . . . . . Hacking Detections 3 | . 1 . 2 . . Full Trace Events . | . . . . . . Feedback Events . | . . . . . . Feedback Blocked . | . . . . . . Robot Schematics Acquired . | . . . . . . Robots Built . | . . . . . . Authchips . | . . . . . . Time . | . . . . . . Total Robot Build Rating . | . . . . . . Part Schematics Acquired 1 | . . . 1 . . Parts Built . | . . . . . . Authchips . | . . . . . . Time . | . . . . . . Total Part Build Rating . | . . . . . . Parts Repaired . | . . . . . . Time . | . . . . . . Parts Recycled . | . . . . . . Recycled Matter . | . . . . . . Retrieved Matter . | . . . . . . Retrieved Components . | . . . . . . Parts Scanalyzed 1 | . . . 1 . . Part Schematics Acquired 1 | . . . 1 . . Parts Damaged . | . . . . . . Bothacking | -11 -10 -10 -9 -9 -8 ------------ Run | Yrd Mat Min Mat Min Mat Used RIF Installer . | . . . . . . Robots Hacked . | . . . . . . Non-combat . | . . . . . . Combat . | . . . . . . Robot Hacks Applied . | . . . . . . Relay Couplers Released . | . . . . . . Fabnet Peak Effective % . | . . . . . . Robots Rewired . | . . . . . . Allies Hacked . | . . . . . . Hacks Repelled . | . . . . . . Allies | -11 -10 -10 -9 -9 -8 -------- Run | Yrd Mat Min Mat Min Mat Total Allies . | . . . . . . Largest Group . | . . . . . . Highest-Rated Group . | . . . . . . Highest-Rated Ally . | . . . . . . Total Orders . | . . . . . . Ally Attacks . | . . . . . . Total Damage . | . . . . . . Kills . | . . . . . . Allies Corrupted . | . . . . . . Allies Melted . | . . . . . . Intel | -11 -10 -10 -9 -9 -8 ------- Run | Yrd Mat Min Mat Min Mat Robot Analysis Total . | . . . . . . Derelict Logs Recovered 1 | . . . . 1 . Drone Launches . | . . . . . . Drone Recoveries . | . . . . . . Exploration | -11 -10 -10 -9 -9 -8 ------------- Run | Yrd Mat Min Mat Min Mat Turns Passed 2261 | 80 945 219 808 85 124 Spaces Moved 1239 | 55 398 172 440 68 106 Core 52 | 10 . . 1 . 41 Treads . | . . . . . . Legs 948 | 45 398 172 333 . . Wheels . | . . . . . . Hover 239 | . . . 106 68 65 Flight . | . . . . . . Fastest Speed 50 | 50 120 120 56 116 50 Average Speed 112 | 119 120 120 108 116 88 Slowest Speed 250 | 200 120 120 250 116 180 Overloaded Moves . | . . . . . . Propulsion Burnouts . | . . . . . . Robots Hopped . | . . . . . . Cave-ins Triggered 1 | . . . 1 . . Exploration Rate (%) 22 | 4 41 31 27 21 12 Regions Visited 5 Branch Regions 2 Pre-discovered Areas 1 | . . . . 1 . Known Exits Taken . | . . . . . . Unknown Exits Taken 5 | 1 1 1 1 1 . Scrap Searched 1 | . . . . 1 . Spaces Dug . | . . . . . . Terrain Destroyed 41 | . . . 33 . 8 Melee . | . . . . . . Projectile . | . . . . . . AOE 41 | . . . 33 . 8 Terrain Rammed . | . . . . . . Walls Destroyed . | . . . . . . Machines Disabled . | . . . . . . Actions | -11 -10 -10 -9 -9 -8 --------- Run | Yrd Mat Min Mat Min Mat Total 2012 | 66 853 184 714 72 123 Wait 660 | . 436 13 211 . . Move 1234 | 54 397 171 439 67 106 Hop . | . . . . . . Pick Up 30 | 6 7 . 14 2 1 Fast Attach 11 | 6 1 . 1 2 1 Attach 13 | . . . 11 . 2 Detach . | . . . . . . Swap 6 | . . . 4 1 1 Drop 12 | . 5 . 7 . . Fire 46 | . 7 . 27 . 12 Melee . | . . . . . . Ram . | . . . . . . Kick . | . . . . . . Crush . | . . . . . . Escape Stasis . | . . . . . . Rewire . | . . . . . . Trap . | . . . . . . Miscellaneous . | . . . . . . Route ------- -11/Scrapyard -10/Materials -10/Mines -9/Materials -9/Mines -8/Materials History --------- Turn | Location | Event 12 | -11/Scrapyard | Discovered new exit (range 16) 81 | -11/Scrapyard | Entered Materials 328 | -10/Materials | Build established: Mutant 813 | -10/Materials | Discovered new exit (range 13) 1026 | -10/Materials | Entered Mines 1053 | -10/Mines | Discovered new exit (range 7) 1169 | -10/Mines | Assembled infested the area 1245 | -10/Mines | Entered Materials 1245 | -9/Materials | Evolved 2 slots: Utility x1, Weapon x1 1672 | -9/Materials | Build established: Tank 1975 | -9/Materials | Lost 5 parts (2n1u2w) 2027 | -9/Materials | Crushed by falling debris 2029 | -9/Materials | Discovered new exit (range 16) 2053 | -9/Materials | Entered Mines 2058 | -9/Mines | Lost 4 parts (1p1n1u1w) 2079 | -9/Mines | Learned location of Storage (-7) 2115 | -9/Mines | Discovered new exit (range 14) 2122 | -9/Mines | Received a Rocket Launcher from a helpful Derelict 2138 | -9/Mines | Entered Materials 2138 | -8/Materials | Evolved 2 slots: Propulsion x1, Utility x1 2221 | -8/Materials | Core integrity fell below 50% 2255 | -8/Materials | Core integrity fell below 20% 2262 | -8/Materials | Destroyed by Y-45 Defender with Heavy Assault Rifle Last Messages --------------- 02223_ System Shield destroyed. 02223_ Critical hit (Blast). 02223_ Knocked back. 02226_ Acquired Hvy. Assault Rifle. 02226_ K-01 Serf collects debris. 02228_ W-25 Informer knocked back. 02232_ K-01 Serf collects debris. 02239_ Knocked back. 02246_ W-25 Informer sends out distress signal. 02247_ M-28 Smith repairs W-25 Informer. 02249_ Hvy. Assault Rifle destroyed. 02249_ Knocked back. 02250_ M-28 Smith fits Backup Propulsion III on W-25 Informer. 02250_ Extracted 1 energy. 02252_ Acquired 8 matter. 02254_ Knocked back. 02255_ U-05 Engineer lays Concrete. 02259_ Knocked back. 02260_ Acquired 7 matter. 02260_ U-05 Engineer builds a Wall. Map ----- +----------------------------------------------------+ | ????????????????# # # #???? | | ????????????????# """ # # """#???? | | ????????????????# "R + # """#???? | | ????????????????# """ # # """#???? | | ????????????????# """ # + #???? | | ????????????????# # # """#???? | | ???????????????######### # """#???? | | ???????????????# """ # # """#???? | | ???????????????# = "Y" # " #???? | | ???????????????# + ##########???? | | ???????????????# # "#???????????? | | ???????????????# ! # %#??###### #??? | | ???????????????#######?# #? #??? | | ???????????????????????# % #?" = #??? | | ???????????????????????# #"T !!! #??? | | ???????????????????????# %#"" !% #??? | | ??????????????########## + !! #??? | | ??????????????? # wY# #??? | | ??????????????? # w # #??? | | ??????????????? """ !# #? #??? | | ???????????????"""""k #! %#?#########??? | | ???????????????""""" ! #!m #????????????? | | ??????????????#""""" # ##???????????? | | ??????????????# """ ! % #???????????? | | ??????????????# #???????????? | | ??????????????# @ #???????????? | | ??????????????#### ##### H ##??????????? | | ???????????? #######u #??????????? | | ??????????# % ##??????????? | | ??????????+ #???????????? | | ??????????# #???????????? | | ??????????# ####### #???????????? | | ??????????## ????????#######???????????? | | ???????????#????????????????????????????? | | ????????????????????????????????????????? | | ????????????????????????????????????????? | | ????????????????????????????????????????? | | ????????????????????????????????????????? | | ????????????????????????????????????????? | | ????????????????????????????????????????? | | ????????????????????????????????????????? | | ????????????????????????????????????????? | | ????????????????????????????????????????? | | ????????????????????????????????????????? | | ????????????????????????????????????????? | | ????????????????????????????????????????? | | ????????????????????????????????????????? | | ????????????????????????????????????????? | | ????????????????????????????????????????? | | ????????????????????????????????????????? | +----------------------------------------------------+ Best States ------------- Heat Dissipation 41 Energy Generation 10 Energy Capacity 250 Matter Stores 300 Matter Capacity 300 Sight Range 16 Terrain Scan Density 85 ECM Strength 1 Propulsion Shielding 33 Evasion (%) 55 Defensive Hacking 10 Item Schematics ----------------- Imp. Hover Unit | -9/Materials | Scanalyzed Robot Schematics ------------------ None Fabricated ------------ Nothing Alien Tech Used ----------------- None Achievements -------------- Let's See Who's Tougher Challenges ------------ None Game ------ Seed ElectrostormPlasmaFalx Manual? 0 Play Time 00:26:28 Cumulative 13.4 hours Start 2024.11.22 @ 22:19:56 End 2024.11.22 @ 22:44:32 Sessions 1 Manual Loads 0 Difficulty Rogue Special Mode None Game No. 16 Rogue 16 Adventurer 0 Explorer 0 Win Type - Total 0 Types 0/0/0/0/0/0/0/0/0 Lore% 11 Gallery% 16 Achievement% 14 Wizard Run 0 Options --------- Layout 1 ASCII 0 Keyboard 0 Movement Arrows Keybinds 0 Fullscreen 1 Font 24/Smallcaps Map View 76x35 Zoom Use 0% Tactical HUD 1 Map Filters NONE Filters NONE Steam 1 RUN: 648efd56-da8d-461f-9ffb-55ad58519758